Cogmind - Beta 17 @@@ ROGUE MODE // 2026.07.16 @ 18:41:52 Player: Ammie Result: Self-destructed Performance ------------- Evolutions (3) 1500 Regions Visited (6) 1200 Robots Destroyed (98) 490 Value Destroyed (2958) 2958 Prototype IDs (29) 580 Alien Tech Used (0) 0 Bonus (649) 649 TOTAL SCORE: 7377 Bonus ------- High Alert Combat Kills 324 Follower Combat Kills 25 Aligned with FarCom 300 Cogmind --------- Core Integrity 226/700 Matter 290/300 Energy 100/100 System Corruption 4% Temperature Cool (0) Movement Core (50) Location -7/Factory Parts ------- > --- POWER (1) -------- (None) > --- PROPULSION (4) --- (None) > --- UTILITY (6) ------ Advanced Targeting Computer System Restoration Module > --- WEAPON (2) ------- Katana > --- INVENTORY (5) ---- Light Nuclear Core Improved Heat Sink Cloak of Protection Hacking Suite Field Laser Peak State ------------ > --- POWER ------------ Deuterium Engine > --- PROPULSION ------- Light Treads Light Treads Improved Treads > --- UTILITY ---------- Improved Cooling System High-capacity Storage Unit Improved Terrain Scanner Advanced Targeting Computer ECM Suite Cloak of Protection > --- WEAPON ----------- Plasma Cannon Katana > --- INVENTORY -------- Ion Engine Light Nuclear Core Light Nuclear Core Cesium-ion Thruster Improved Heat Sink Improved Heat Sink Small Storage Unit High-capacity Storage Unit Hacking Suite Hacking Suite Field Laser Heavy Particle Gun Advanced Beam Rifle Advanced Beam Rifle Heavy Particle Cannon Missile Launcher Improved Datajack Plasma Flamer [Rating: 39] Favorites ----------- Power Ion Engine Engine Ion Engine Power Core Light Nuclear Core Propulsion Light Treads Treads Light Treads Leg Aluminum Leg Flight Unit Improved Flight Unit Utility High-capacity Storage Unit Device Improved Terrain Scanner Storage High-capacity Storage Unit Processor Advanced Targeting Computer Protection Light Armor Plating Weapon Light Cannon Energy Gun Advanced Beam Rifle Energy Cannon Heavy Particle Cannon Ballistic Gun Light Assault Rifle Ballistic Cannon Light Cannon Launcher Missile Launcher Special Weapon Plasma Flamer Slashing Weapon Katana Build | -11 -10 -10 -10 -9 -8 -7 ------- Run | Yrd Mat Min Exi Min Mat Fac Slots Evolved 6 | . . . . . 4 2 Power . | . . . . . . . Propulsion 2 | . . . . . 2 . Utility 4 | . . . . . 2 2 Weapon . | . . . . . . . Parts Attached 62 | 6 18 . . 1 30 7 Power 11 | 1 3 . . . 7 . Engine 7 | 1 3 . . . 3 . Core 4 | . . . . . 4 . Reactor . | . . . . . . . Propulsion 19 | 2 7 . . . 10 . Treads 13 | 2 2 . . . 9 . Leg 5 | . 5 . . . . . Wheel . | . . . . . . . Hover . | . . . . . . . Flight 1 | . . . . . 1 . Utility 15 | 1 4 . . . 4 6 Device 9 | . 2 . . . 2 5 Storage 4 | 1 1 . . . 1 1 Processor 1 | . . . . . 1 . Hackware . | . . . . . . . Protection 1 | . 1 . . . . . Artifact . | . . . . . . . Weapon 17 | 2 4 . . 1 9 1 Energy Gun 6 | 1 1 . . . 4 . Energy Cannon 3 | . . . . . 2 1 Ballistic Gun 2 | 1 1 . . . . . Ballistic Cannon 3 | . 2 . . 1 . . Launcher 1 | . . . . . 1 . Special Weapon 1 | . . . . . 1 . Impact Weapon . | . . . . . . . Slashing Weapon 1 | . . . . . 1 . Piercing Weapon . | . . . . . . . Special Melee Weapon . | . . . . . . . Unidentified Prototypes 4 | . . . . . 4 . Parts Lost 26 | . 5 . . 3 10 8 Power 3 | . 1 . . . 1 1 Propulsion 14 | . 2 . . 1 8 3 Utility 5 | . 1 . . 1 . 3 Weapon 4 | . 1 . . 1 1 1 Highest Loss Streak 7 | . 3 . . 3 2 7 To Critical Strikes 1 | . . . . . . 1 Average Backups 16 | 1 9 16 18 19 17 17 Power 2 | . 1 2 2 2 3 3 Propulsion 2 | . 2 4 5 4 1 . Utility 4 | . 2 3 4 5 4 6 Weapon 5 | . 2 5 6 6 6 6 Tool/Special . | . . . . . . . Unused Backups 17 | . . . . . 7 10 Power 2 | . . . . . . 2 Propulsion 1 | . . . . . . 1 Utility 3 | . . . . . . 3 Weapon 9 | . . . . . 6 3 Tool/Special 2 | . . . . . 1 1 Average Slot Usage (%) 94 | . 98 100 100 98 90 82 Engine 9 | . 13 14 14 14 2 6 Core 2 | . . . . . 6 . Treads 25 | . 17 28 28 25 28 18 Leg 2 | . 9 . . 2 3 . Device 10 | . 6 . . . 17 26 Storage 11 | . 14 14 14 14 9 6 Processor 2 | . . . . . 5 7 Protection 6 | . 6 14 14 12 . . Energy Gun 1 | . 3 . . . 3 . Energy Cannon 5 | . . . . . 12 6 Ballistic Gun 1 | . 6 . . . . . Ballistic Cannon 13 | . 17 28 28 28 . . Slashing Weapon 1 | . . . . . . 7 Peak Build Rating 39 | 6 10 9 10 11 33 39 Average Rating 17 | 5 7 8 9 10 27 34 On Entrance 10 | . 6 8 9 10 9 28 Avg Prop Armor Cover (%) 5 | . 5 . . . . . Naked Turns . | . . . . . . . Heaviest Build 71 | 13 54 54 54 54 63 71 Greatest Support 83 | 40 40 40 40 40 83 63 Greatest Overweight (x) 15 | . 15 1 1 2 2 2 Average Overweight (x) . | . 1 1 1 1 . . Largest Inventory Capacity 20 | 8 20 20 20 20 20 20 Average Capacity 19 | 7 18 20 20 20 20 19 Most Carried 20 | 2 14 18 19 20 20 20 Average Carried 16 | 1 9 16 18 19 17 17 Final Capacity 20 | 8 20 20 20 20 20 5 Final Carried 19 | 2 14 18 19 18 17 5 Class Distribution -------------------- 53% | Mutant 20% | Scavenger-Skirmisher 10% | Skirmisher 7% | Assassin 5% | Infiltrator-Assassin Dominant Class ---------------- Mutant | -10/Materials Mutant | -10/Mines Mutant | -10/Exiles Mutant | -9/Mines Scavenger-Skirmisher | -8/Materials Infiltrator-Assassin | -7/Factory Resources | -11 -10 -10 -10 -9 -8 -7 ----------- Run | Yrd Mat Min Exi Min Mat Fac Matter Collected 1390 | 223 279 252 . 69 506 61 Remotely . | . . . . . . . Salvage Created 3617 | 19 696 23 . 198 2350 331 Parts 171 | 1 34 1 . 7 107 21 Haulers Intercepted 8 | . 2 . . . 6 . Recyclers Shooed 4 | . 3 . . . . 1 Parts Field Recycled . | . . . . . . . Retrieved Matter . | . . . . . . . Parts Self-Destructed . | . . . . . . . Prevented . | . . . . . . . Parts Restored 1 | . . . . . . 1 Broken 1 | . . . . . . 1 Kills | -11 -10 -10 -10 -9 -8 -7 ------- Run | Yrd Mat Min Exi Min Mat Fac Combat Hostiles Destroyed 65 | . 15 3 . 5 37 5 Melee 11 | . . . . . 7 4 Guns 15 | . 13 . . . 2 . Cannons 32 | . 2 3 . 5 22 . AOE 3 | . . . . . 3 . Classes Destroyed 16 | 1 5 2 . 1 6 1 Worker 7 | 1 1 1 . . 2 2 Builder 5 | . . . . . 5 . Hauler 8 | . 2 . . . 6 . Recycler 2 | . . . . . 2 . Operator 5 | . 2 . . . 3 . Watcher 8 | . 2 . . . 5 1 Swarmer 10 | . 3 . . . 7 . Grunt 31 | . 12 . . 4 15 . Brawler 3 | . . . . 1 2 . Duelist 1 | . . . . . 1 . Sentry 9 | . . . . . 9 . Demolisher 1 | . . 1 . . . . Specialist 3 | . . . . . 2 1 Hunter 1 | . . . . . 1 . Programmer 4 | . . . . . . 4 Assembled 2 | . . 2 . . . . Best Kill Streak 6 | 1 4 2 . 3 6 5 Combat Bots Only 6 | . 3 2 . 3 6 3 Max Kills in Single Turn 3 | 1 2 1 . 1 3 1 Gunslinging . | . . . . . . . Exploded 2 | . . . . . 2 . Melee 1 | . . . . . 1 1 Uniques/NPCs Destroyed . | . . . . . . . Combat | -11 -10 -10 -10 -9 -8 -7 -------- Run | Yrd Mat Min Exi Min Mat Fac Hostile Shots Fired 454 | . 117 15 . 18 206 98 Missed 114 | . 24 2 . 7 48 33 Hits 340 | . 93 13 . 11 158 65 Melee 8 | . . 1 . 1 6 . Projectile 332 | . 93 12 . 10 152 65 AOE 3 | . . 3 . . . . Critical Strikes 16 | . 1 3 . . 9 3 Damage Taken 4930 | . 1072 369 . 143 2363 983 Core 1066 | . 210 14 . 12 356 474 Absorbed by Shields . | . . . . . . . Core Remaining (%) 46 | 100 . . . 5 35 . Volleys Fired 285 | 1 106 10 . 11 149 8 Largest 2 | 2 2 2 . 2 2 1 Hottest 175 | 70 70 60 . 60 175 100 Shots Fired 539 | 2 205 20 . 21 283 8 Gun 218 | 2 167 . . . 49 . Cannon 301 | . 38 20 . 21 215 7 Launcher 2 | . . . . . 2 . Special 18 | . . . . . 17 1 Kinetic 206 | 1 163 20 . 21 1 . Thermal 331 | 1 42 . . . 280 8 Explosive 2 | . . . . . 2 . Electromagnetic . | . . . . . . . Robot Hit Streak 40 | 1 7 4 . 7 38 40 Robot Miss Streak 5 | . 5 3 . 4 4 1 Penetration Max . | . . . . . . . Secondary Targets 4 | . 4 . . . . . Max Gunslinging Chain 1 | . 1 . . . . . Shots Hit Robots 318 | 1 109 9 . 12 169 18 Core Hits 136 | 1 45 4 . 6 71 9 Critical Kills 3 | . . . . . 2 1 Critical Parts Destroyed 1 | . 1 . . . . . Critical Strikes 15 | . 5 . . 1 6 3 Burn 3 | . . . . . 3 . Meltdown 3 | . . . . . 2 1 Destroy 1 | . 1 . . . . . Blast 5 | . 4 . . 1 . . Sever 3 | . . . . . 1 2 Melee Attacks 47 | . . . . . 24 23 Impact . | . . . . . . . Slashing 47 | . . . . . 24 23 Piercing . | . . . . . . . Sneak Attacks 6 | . . . . . 3 3 Combat Hostiles . | . . . . . . . Follow-up Attacks . | . . . . . . . Damage Inflicted 7169 | 15 1229 210 . 218 4804 693 Guns 1353 | 12 802 . . . 539 . Cannons 4052 | . 411 140 . 218 3100 183 Explosions 267 | . . . . . 267 . Melee 1176 | . . . . . 666 510 Ramming 142 | 3 16 70 . . 53 . Kinetic 1322 | . 964 140 . 218 . . Thermal 4262 | 12 249 . . . 3818 183 Explosive 267 | . . . . . 267 . Electromagnetic . | . . . . . . . Impact . | . . . . . . . Slashing 1176 | . . . . . 666 510 Piercing . | . . . . . . . Highest Corruption 4 | . . . . 4 . 4 Average Corruption 1 | . . . . 4 . 1 Corruption Purged . | . . . . . . . Corruption Blocked . | . . . . . . . Effects 4 | . . . . 2 . 2 Message Errors 1 | . . . . . . 1 Matter Fused 2 | . . . . 1 . 1 Heat Flow Errors 1 | . . . . 1 . . Overload Shots . | . . . . . . . Overflow Damage 195 | . 7 11 . . 159 18 Projectiles 109 | . 7 11 . . 73 18 Explosions 5 | . . . . . 5 . Melee 81 | . . . . . 81 . Knockbacks 5 | . 1 3 . 1 . . Impact 1 | . . 1 . . . . Kinetic 4 | . 1 2 . 1 . . Secondary . | . . . . . . . Self-Inflicted Damage . | . . . . . . . Shots . | . . . . . . . Rammed 22 | 1 2 13 . . 6 . Targets Rammed 23 | 1 2 14 . . 6 . Kicked . | . . . . . . . Crushed 1 | . . 1 . . . . Highest Temperature 491 | 30 259 45 . 95 491 72 Average Temperature 76 | 18 67 15 . 25 87 39 Received Heat Transfer 1653 | . 474 . . 60 1026 93 Effects 2 | . . . . . 2 . Shutdowns 1 | . . . . . 1 . Short Circuit 1 | . . . . . 1 . Siege Activations . | . . . . . . . Martial Activations . | . . . . . . . Shielding Activations . | . . . . . . . Robots Disrupted . | . . . . . . . Combat Hostiles . | . . . . . . . Robots Corrupted 1 | . . . . . 1 . Combat Hostiles . | . . . . . . . Parts Fried 1 | . . . . . 1 . Impact Corruptions 1 | . . . . . 1 . Robots Melted 5 | . . . . . 4 1 Combat Hostiles 4 | . . . . . 3 1 Parts Melted 14 | . . . . 1 12 1 Heat Transferred 8180 | 37 669 . . . 7187 287 Parts Sabotaged . | . . . . . . . Parts Stolen . | . . . . . . . Parts Stripped . | . . . . . . . Power Chain Reactions . | . . . . . . . Alert | -11 -10 -10 -10 -9 -8 -7 ------- Run | Yrd Mat Min Exi Min Mat Fac Maximum Alert Level 3 | . . . . . 3 2 Low Security (%) 69 | 100 100 100 . 100 32 53 Level 1 18 | . . . . . 39 37 Level 2 7 | . . . . . 17 9 Level 3 3 | . . . . . 10 . Level 4 . | . . . . . . . Level 5 . | . . . . . . . High Security . | . . . . . . . Max Security . | . . . . . . . Peak Influence 992 | 5 71 20 . 60 992 450 Initial 450 | . 3 . . . 10 450 Average 145 | . 17 . . 7 322 212 Influence Increases 2442 | 5 479 40 . 144 1605 169 Destroy 0b10 Robot/C 1280 | . 300 20 . 120 740 100 Destroy 0b10 Robot/NC 175 | 5 35 5 . . 115 15 Destroy Leader 332 | . 68 . . 20 212 32 Allied During Kill 4 | . . . . 4 . . Successful Hack 62 | . 31 . . . 19 12 Disable Machine 60 | . 30 . . . 30 . Anti-Garrison Action 150 | . . . . . 150 . Destroy Structure 109 | . . . . . 99 10 Lose Combat Pursuer 270 | . 15 15 . . 240 . Influence Decreases 2385 | . 484 40 . 116 641 1104 Entered New Map 562 | . 2 . . . 18 542 Time Decay 1433 | . 442 40 . 86 383 482 Lost Part 220 | . 40 . . 10 90 80 Lost Ally 20 | . . . . 20 . . Purge Threat 150 | . . . . . 150 . Squads Dispatched 16 | . 2 1 . . 11 2 Investigation 3 | . . 1 . . 2 . Extermination 2 | . . . . . . 2 Reinforcement 9 | . 2 . . . 7 . Assault 2 | . . . . . 2 . Garrison . | . . . . . . . Intercept . | . . . . . . . Searches Triggered . | . . . . . . . Construction Impeded 2 | . . . . . 2 . Haulers Reinforced . | . . . . . . . Active Scanning Responses . | . . . . . . . Cargo Convoy Interrupts 1 | . . . . . . 1 Stealth | -11 -10 -10 -10 -9 -8 -7 --------- Run | Yrd Mat Min Exi Min Mat Fac Distress Signals 9 | . 3 . . . 4 2 Communications Jammed . | . . . . . . . Distress Signals . | . . . . . . . Times Spotted 130 | . 29 8 . 6 64 23 Peak Tracking Total 15 | . 5 15 . 3 7 12 Tactical Retreats 11 | . 1 1 . . 8 1 ECM-based Alert Blocks 1 | . . . . . . 1 Traps | -11 -10 -10 -10 -9 -8 -7 ------- Run | Yrd Mat Min Exi Min Mat Fac Traps Triggered 6 | . 1 . . . 3 2 Indirectly . | . . . . . . . Trap Hack Attempts . | . . . . . . . Triggered . | . . . . . . . Disarmed . | . . . . . . . Reprogrammed . | . . . . . . . Reused . | . . . . . . . Traps Extracted . | . . . . . . . Installed . | . . . . . . . Triggered . | . . . . . . . Machines | -11 -10 -10 -10 -9 -8 -7 ---------- Run | Yrd Mat Min Exi Min Mat Fac Machines Disabled 5 | . 2 . . . 3 . Max in Single Turn 1 | . 1 . . . 1 . Garrison Access 1 | . . . . . 1 . Machines Repaired . | . . . . . . . Machines Dismantled . | . . . . . . . Machines Sabotaged . | . . . . . . . Overloaded Fab Kills . | . . . . . . . Hacking | -11 -10 -10 -10 -9 -8 -7 --------- Run | Yrd Mat Min Exi Min Mat Fac Machines Accessed 17 | . 5 1 1 . 8 2 Terminals 13 | . 5 . . . 7 1 Fabricators . | . . . . . . . Repair Stations 1 | . . . . . . 1 Recycling Units . | . . . . . . . Scanalyzers 1 | . . . . . 1 . Garrison Access . | . . . . . . . Total Hacks 38 | . 11 1 1 . 19 6 Successful 22 | . 9 1 1 . 9 2 Failed 16 | . 2 . . . 10 4 Catastrophic 5 | . . . . . 5 . Database Lockouts . | . . . . . . . Manual 17 | . 4 . 1 . 10 2 Terminals 30 | . 11 . . . 16 3 Fabricators . | . . . . . . . Repair Stations 3 | . . . . . . 3 Recycling Units . | . . . . . . . Scanalyzers 3 | . . . . . 3 . Garrison Access . | . . . . . . . Terminal Hacks 14 | . 5 1 1 . 6 1 Part Schematic 1 | . . . . . 1 . Prototype ID Bank 1 | . . . . . 1 . Open Door 1 | . . 1 . . . . Branch Access Points 1 | . . . . . 1 . Alert Level 1 | . . . . . . 1 Unreport Threat 1 | . . . . . 1 . Locate Traps 1 | . 1 . . . . . Hauler Manifests 3 | . 1 . . . 2 . Registered Components 1 | . 1 . . . . . Zone Layout 2 | . 2 . . . . . Proto ID Catalog 1 | . . . 1 . . . Fabricator Hacks . | . . . . . . . Repair Station Hacks 1 | . . . . . . 1 Scan Component 1 | . . . . . . 1 Recycling Unit Hacks . | . . . . . . . Scanalyzer 2 | . . . . . 2 . Insert Component 1 | . . . . . 1 . Analyze 1 | . . . . . 1 . Garrison Access Hacks . | . . . . . . . Unauthorized Hacks 5 | . 4 . . . 1 . Terminals 5 | . 4 . . . 1 . Botnet 5 | . 4 . . . 1 . Fabricators . | . . . . . . . Repair Stations . | . . . . . . . Recycling Units . | . . . . . . . Scanalyzers . | . . . . . . . Garrison Access . | . . . . . . . Data Cores Recovered . | . . . . . . . Used . | . . . . . . . Hacking Detections 9 | . 2 . . . 6 1 Full Trace Events 3 | . . . . . 3 . Feedback Events . | . . . . . . . Feedback Blocked . | . . . . . . . Robot Schematics Acquired . | . . . . . . . Robots Built . | . . . . . . . Authchips . | . . . . . . . Time . | . . . . . . . Total Robot Build Rating . | . . . . . . . Part Schematics Acquired 2 | . . . . . 2 . Parts Built . | . . . . . . . Authchips . | . . . . . . . Time . | . . . . . . . Total Part Build Rating . | . . . . . . . Part Studies Acquired . | . . . . . . . Parts Repaired . | . . . . . . . Time . | . . . . . . . Parts Recycled . | . . . . . . . Recycled Matter . | . . . . . . . Retrieved Matter . | . . . . . . . Retrieved Components . | . . . . . . . Parts Scanalyzed 1 | . . . . . 1 . Part Schematics Acquired 1 | . . . . . 1 . Parts Damaged . | . . . . . . . Bothacking | -11 -10 -10 -10 -9 -8 -7 ------------ Run | Yrd Mat Min Exi Min Mat Fac Used RIF Installer . | . . . . . . . Robots Hacked . | . . . . . . . Non-combat . | . . . . . . . Combat . | . . . . . . . Robot Hacks Applied . | . . . . . . . Relay Couplers Released 2 | . . . . . 2 . Machine Destruction 2 | . . . . . 2 . Fabnet Peak Effective % . | . . . . . . . Robots Rewired . | . . . . . . . Allies Hacked . | . . . . . . . Hacks Repelled . | . . . . . . . Allies | -11 -10 -10 -10 -9 -8 -7 -------- Run | Yrd Mat Min Exi Min Mat Fac Total Allies 4 | . . 3 . 1 . . Largest Group 4 | . . 3 3 4 . . Highest-Rated Group 71 | . . 40 40 71 . . Highest-Rated Ally 31 | . . 16 16 31 . . Total Orders . | . . . . . . . Ally Attacks 13 | . . . . 13 . . Total Damage 202 | . . . . 202 . . Kills 1 | . . . . 1 . . Allies Corrupted . | . . . . . . . Allies Melted . | . . . . . . . Intel | -11 -10 -10 -10 -9 -8 -7 ------- Run | Yrd Mat Min Exi Min Mat Fac Active Infowar (turns) 5658 | . 434 . . . 4034 1190 Terrain 5647 | . 434 . . . 4034 1179 Cloaking 1 | . . . . . . 1 ECM 984 | . . . . . . 984 Robot Analysis Total . | . . . . . . . Derelict Logs Recovered 2 | . . 2 . . . . Drone Launches . | . . . . . . . Drone Recoveries . | . . . . . . . Exploration | -11 -10 -10 -10 -9 -8 -7 ------------- Run | Yrd Mat Min Exi Min Mat Fac Turns Passed 12869 | 118 2030 3560 520 761 4626 1254 Spaces Moved 5393 | 64 689 1414 217 287 2231 491 Core 88 | 4 3 . . . . 81 Treads 4945 | 60 546 1414 217 262 2036 410 Legs 360 | . 140 . . 25 195 . Wheels . | . . . . . . . Hover . | . . . . . . . Flight . | . . . . . . . Fastest Speed 50 | 50 160 240 240 240 160 50 Average Speed 204 | 153 245 240 240 241 165 196 Slowest Speed 800 | 160 800 240 240 260 320 320 Overloaded Moves . | . . . . . . . Propulsion Burnouts . | . . . . . . . Robots Hopped . | . . . . . . . Potential Cave-ins . | . . . . . . . Cave-ins Triggered . | . . . . . . . Exploration Rate (%) 60 | 4 92 99 59 65 92 15 Regions Visited 6 Branch Regions 3 Pre-discovered Areas 2 | . . 2 . . . . Known Exits Taken . | . . . . . . . Unknown Exits Taken 6 | 1 1 1 1 1 1 . Scrap Searched 3 | . . 2 . 1 . . Spaces Dug 41 | . . . . . 31 10 Terrain Destroyed 113 | . . . . . 103 10 Melee 14 | . . . . . 4 10 Projectile 78 | . . . . . 78 . AOE 21 | . . . . . 21 . Terrain Rammed . | . . . . . . . Walls Destroyed . | . . . . . . . Machines Disabled . | . . . . . . . Actions | -11 -10 -10 -10 -9 -8 -7 --------- Run | Yrd Mat Min Exi Min Mat Fac Total 6575 | 79 836 1542 217 334 2831 736 Wait 695 | 6 14 101 . 33 341 200 Move 5388 | 64 688 1413 216 286 2230 491 Hop . | . . . . . . . Pick Up 33 | 2 7 4 1 1 15 3 Fast Attach 24 | 6 4 . . . 12 2 Attach 17 | . 2 . . 2 11 2 Detach . | . . . . . . . Swap 44 | . 13 . . 1 26 4 Drop 20 | . . . . . 17 3 Fire 285 | 1 106 10 . 11 149 8 Melee 47 | . . . . . 24 23 Ram . | . . . . . . . Kick . | . . . . . . . Crush 22 | . 2 14 . . 6 . Escape Stasis . | . . . . . . . Rewire . | . . . . . . . Trap . | . . . . . . . Miscellaneous . | . . . . . . . Route ------- -11/Scrapyard -10/Materials (discovered 5 exits: [*Mat x3] / *Min / [*Sub]) -10/Mines (discovered 4 exits: [*Mat x2] / *Exi / [*Sub]) -10/Exiles -9/Mines -8/Materials (discovered 4 exits: *Fac x2 / *Sto x2) -7/Factory (discovered 1 exit: [*Low]) History --------- Turn | Location | Event 8 | -11/Scrapyard | Discovered new exit (range 14) 119 | -11/Scrapyard | Entered Materials 304 | -10/Materials | Build established: Mutant 454 | -10/Materials | Core integrity fell below 50% 482 | -10/Materials | Lost 3 parts (2n1w) 634 | -10/Materials | Discovered new exit (range 6) 771 | -10/Materials | Discovered new exit (range 12) 1060 | -10/Materials | Discovered new exit (range 8) 1311 | -10/Materials | Core integrity fell below 20% 1624 | -10/Materials | Discovered new exit (range 13) 1945 | -10/Materials | Discovered new exit (range 16) 2149 | -10/Materials | Entered Mines 2335 | -10/Mines | Assembled infested the area 2404 | -10/Mines | Met 8R-AWN 2583 | -10/Mines | Learned location of Zion (-6) 2901 | -10/Mines | Learned location of Storage (-8) 3051 | -10/Mines | Discovered new exit (range 8) 3205 | -10/Mines | Discovered new exit (range 9) 3314 | -10/Mines | Met a Derelict shopkeep closing up shop 3568 | -10/Mines | Assisted by bots powering up and referring to "LRC-V3" 3889 | -10/Mines | Discovered new exit (range 2) 4970 | -10/Mines | Discovered new exit (range 5) 5709 | -10/Mines | Entered Exiles 5709 | -10/Exiles | Accompanied by 3 allies 5769 | -10/Exiles | Welcomed by 8R-AWN 5810 | -10/Exiles | Met EX-HEX 5889 | -10/Exiles | Met EX-BIN 5918 | -10/Exiles | Aligned with FarCom system 5921 | -10/Exiles | Given EX-Vault access code 5985 | -10/Exiles | Opened EX-Vault 6000 | -10/Exiles | Found Cloak of Protection 6051 | -10/Exiles | Warned to stay clear of 0b10 Research branches 6121 | -10/Exiles | Met EX-DEC 6207 | -10/Exiles | Discovered new exit (range 10) 6229 | -10/Exiles | Left Exiles lab with Cloak of Protection 6229 | -10/Exiles | Entered Mines 6229 | -9/Mines | Accompanied by 3 allies 6232 | -9/Mines | Received a Mining Laser from a helpful Derelict 6465 | -9/Mines | Lost 4 allies 6571 | -9/Mines | Found a Scrap Suit stashed away for nefarious purposes 6705 | -9/Mines | A weapon hastily lodged in a ceiling crevice suddenly fell to the ground 6952 | -9/Mines | Lost 3 parts (1n1u1w) 6969 | -9/Mines | Discovered new exit (range 8) 6990 | -9/Mines | Entered Materials 6990 | -8/Materials | Evolved 4 slots: Propulsion x2, Utility x2 6991 | -8/Materials | Identified exit to Storage 7317 | -8/Materials | Build established: Scavenger-Skirmisher 8876 | -8/Materials | Discovered new exit (range 3) 9689 | -8/Materials | Discovered new exit (range 16) 10025 | -8/Materials | Build established: Skirmisher 11102 | -8/Materials | Core integrity fell below 50% 11427 | -8/Materials | Build established: Assassin 11616 | -8/Materials | Entered Factory 11616 | -7/Factory | Evolved 2 slots: Utility x2 12050 | -7/Factory | Build established: Infiltrator-Assassin 12757 | -7/Factory | Build established: Assassin 12771 | -7/Factory | Cargo convoy interrupted 12820 | -7/Factory | Core integrity fell below 50% 12842 | -7/Factory | Discovered new exit (range 5) 12843 | -7/Factory | Lost 7 parts (1p2n3u1w) 12870 | -7/Factory | Self-destructed Last Messages --------------- 12812_ Subcomponent Replicator disabled. 12812_ Penetrated by Slug. 12812_ Critical hit (Destroy). 12812_ Imp. Cooling System destroyed. 12815_ Penetrated by Slug. 12815_ X-57 Shotgunner destroyed. 12815_ Penetrated by Slug. 12817_ Dropped Hcp. Storage Unit. 12818_ Penetrated by Slug. 12818_ Slug penetrates Wall. 12819_ Penetrated by Slug. 12820_ R-06 Scavenger collects Imp. Datajack. 12821_ Penetrated by Slug. 12826_ Sneak attack on K-01 Serf. 12826_ K-01 Serf destroyed. 12832_ Sneak attack on K-01 Serf. 12832_ K-01 Serf destroyed. 12838_ Acquired System Restoration Module. 12842_ EXIT=FOUND 12852_ Sneak attack on R-06 Scavenger. Map ----- +----------------------------------------------------+ | ?????????????????????????????????? [*= | | ?????????????????????????????????? ![%* | | ???????????????????????????????????######+######/% | | ???????????????????????????????????????????# [[!!! | | ???????????????????????????????????????????# "!|%! | | ???????????????????????????????????????????# ""*=[ | | ???????????????????????????????????????????# """[! | | ???????????????????????????????????????????# """ ] | | ?????????????????????????????#####?????????# """ | | ????????????????????????????? ?????????# | | ????????????????????????????? ?????????#! | | ????????????????????????????? ?????????####/## | | ????????????????????????????"" ????????????# #? | | ?????????????????????????????" ! ????????????# #? | | ?????????????????????????????" #???????????#!#? | | ?????????????????????????????? #???????????#=#? | | ?????????????????????????????? #???????????#%#? | | ??????????????????????????????? #???????????#=#? | | ???????????????????????????????b #???????????# #? | | ??????????????????????????????g? #???????????# #? | | ???????????????????????????????g #???????????# #? | | ?????????????????????????????#+##+#???????????# #? | | ???????????????????########### #???????????#!#? | | ?????????????????# #????########%#? | | ?????????????????#+######## #????# ##*#? | | ?????????????????# !/ @# w###### !## #? | | ?????????????????# ] + < ## #? | | ?????????????????# # ##+######h ## #? | | ?????????????????# # #???????# h !## #? | | ?????????????????# =# #???????###x#### ## | | ?????????????????# """ # #?????????# ### # | | ?????????????????# """ # #?????????# + | | ?????????????????# """ # #?????????#####! # | | ?????????????????# # #??????????? ?## ## | | ?????????????????#######+## #??????????????# #? | | ??????????????????????????# #?????????????## ? | | ??????????????????????????# #??????????????# | | ??????????????????????????# #???????????#+## | | ??????????????????????????# #???????????# | | ??????????????????????????# #??????????????#+## | | ??????????????????????????# #???????????? ? ? ? | | ??????????????????????????? #?????????????"???? | | ??????????????????????????? ???????????????"??? | | ?????????????????????????????????????????????"???? | | ?????????????????????????????????????????????????? | | ?????????????????????????????????????????????????? | | ?????????????????????????????????????????????????? | | ????????????????????????????????????????????????? | | ?????????????????????????????????????????????????? | | ????????????????????????????????????????????#????? | +----------------------------------------------------+ Best States ------------- Heat Dissipation 61 Energy Generation 14 Energy Capacity 275 Matter Stores 300 Matter Capacity 300 Sight Range 16 Terrain Scan Range 16 Terrain Scan Density 10 ECM Strength 1 Armor Coverage 150 Evasion (%) 50 Targeting Accuracy 8 Recoil Reduction 4 Item Schematics ----------------- Plasma Flamer | -8/Materials | Scanalyzed Hacking Suite | -8/Materials | Hacked Robot Schematics ------------------ None Fabricated ------------ Nothing Repaired ---------- Nothing Studied --------- None Alien Tech Used ----------------- None Achievements -------------- None Challenges ------------ None Game ------ Seed RemoteSurveybotSpiker Manual? 0 Play Time 00:55:13 Cumulative 90.4 hours Start 2026.07.10 @ 19:36:28 End 2026.07.16 @ 18:41:52 Sessions 3 Manual Loads 0 Difficulty Rogue Special Mode None Game No. 147 Rogue 147 Adventurer 0 Explorer 0 Win Type - Total 0 Types 0/0/0/0/0/0/0/0/0/0 Lore% 22 Gallery% 32 Achievement% 28 Wizard Run 0 Options --------- Layout 0 ASCII 0 Keyboard 0 Movement Mouse Keybinds 0 Fullscreen 1 Font 24/Smallcaps Map View 38x25 Zoom Use 94% Tactical HUD 1 Map Filters NONE Filters NONE Steam 1 RUN: 1442e7fb-eda3-4c81-b0ff-84cf3116dd86